[Event "FRA-ch Youth U20W 2019"]
[Site "Hyeres"]
[Date "2019.04.19"]
[Round "7.2"]
[White "Fretel, Liza"]
[Black "Aubert, Laurane"]
[Result "1/2-1/2"]
[ECO "B23"]
[WhiteElo "1892"]
[BlackElo "1953"]
[Annotator "NA"]
[PlyCount "204"]
[EventDate "2019.04.14"]
[EventType "swiss"]
[EventCountry "FRA"]
[SourceTitle "playchess.com"]
[Source "ChessBase"]
[SourceQuality "1"]
[TimeControl "5400+30"]

1. e4 {[%emt 0:00:00]} c5 {[%emt 0:00:00]} 2. Nc3 {[%emt 0:00:00]} Nc6 {[%emt 0:00:00]} 3. Bb5 {[%emt 0:00:00]} Nd4 {[%emt 0:00:00]} 4. Bc4 {[%emt 0:00:11]} e6 {[%emt 0:02:27]} 5. Nge2 {[%emt 0:01:37]} a6 {[%emt 0:03:06]} 6. a4 {[%emt 0:00:58]} g6 {[%emt 0:03:49]} 7. O-O {[%emt 0:02:44]} Bg7 {[%emt 0:00:11]} 8. Nxd4 {[%emt 0:02:55]} cxd4 {[%emt 0:00:25]} 9. Ne2 {[%emt 0:00:17]} Ne7 {[%emt 0:05:17]} 10. Nf4 {[%emt 0:05:27]} O-O {[%emt 0:02:11]} 11. d3 {[%emt 0:03:35]} d5 {[%emt 0:02:05]} 12. exd5 {[%emt 0:00:41]} e5 {[%emt 0:03:43]} 13. Ne2 {[%emt 0:00:45]} Nxd5 {[%emt 0:01:41]} 14. Ng3 {[%emt 0:03:37]} Be6 {[%emt 0:08:43]} 15. Ne4 {[%emt 0:07:08]} Nc7 {[%emt 0:03:10]} 16. Bxe6 {[%emt 0:00:32]} Nxe6 {[%emt 0:00:05]} 17. a5 {[%emt 0:02:35]} Rc8 {[%emt 0:01:31]} 18. Nd2 {[%emt 0:02:02]} Nf4 {[%emt 0:08:54]} 19. Nc4 {[%emt 0:01:26]} Nd5 {[%emt 0:00:40]} 20. Bd2 {[%emt 0:03:51]} Re8 {[%emt 0:08:53]} 21. f3 {[%emt 0:06:49]} Qc7 {[%emt 0:10:36]} 22. Qb1 {[%emt 0:09:46]} Qc6 {[%emt 0:06:01]} 23. Qa2 {[%emt 0:02:24]} Rc7 {[%emt 0:05:14]} 24. Qa4 {[%emt 0:00:59]} Qe6 {[%emt 0:00:38]} 25. Rae1 {[%emt 0:02:42]} Rce7 {[%emt 0:07:05]} 26. Bb4 {[%emt 0:03:01]} Nxb4 {[%emt 0:02:44]} 27. Qxb4 {[%emt 0:00:05]} Qd7 {[%emt 0:03:37]} 28. Re2 {[%emt 0:02:15]} Re6 {[%emt 0:01:24]} 29. Rfe1 {[%emt 0:02:50]} Qc7 {[%emt 0:03:29]} 30. Qa4 {[%emt 0:03:40]} Bf8 {[%emt 0:02:56]} 31. Kh1 {[%emt 0:07:32]} Bh6 {[%emt 0:01:28]} 32. Re4 {[%emt 0:01:27]} Kg7 {[%emt 0:02:33]} 33. g3 {[%emt 0:01:25]} Kg8 {[%emt 0:00:56]} 34. Kg2 {[%emt 0:00:10]} R8e7 {[%emt 0:00:40]} 35. R4e2 {[%emt 0:00:48]} Kf8 {[%emt 0:00:36]} 36. h4 {[%emt 0:03:36]} Qc5 {[%emt 0:00:33]} 37. Qa3 {[%emt 0:01:02]} Qd5 {[%emt 0:00:33]} 38. Nb6 {[%emt 0:00:23]} Qd8 {[%emt 0:00:33]} 39. Rxe5 {[%emt 0:00:37]} Kg8 {[%emt 0:00:28]} 40. Rxe6 {[%emt 0:01:13]} fxe6 {[%emt 0:00:20]} 41. Nc4 {[%emt 0:01:19]} Qc7 {[%emt 0:00:41]} 42. Re4 {[%emt 0:00:55]} Bg7 {[%emt 0:00:30]} 43. Qd6 {[%emt 0:00:54]} Qxd6 {[%emt 0:00:30]} 44. Nxd6 {[%emt 0:00:04]} e5 {[%emt 0:00:31]} 45. f4 {[%emt 0:00:35]} Kf8 {[%emt 0:00:30]} 46. fxe5 {[%emt 0:00:16]} Bxe5 {[%emt 0:00:23]} 47. Nc4 {[%emt 0:00:57]} Bf6 {[%emt 0:00:28]} 48. Rxe7 {[%emt 0:00:07]} Kxe7 {[%emt 0:00:11]} 49. Kf3 {[%emt 0:00:15]} Kd7 {[%emt 0:00:53]} 50. Ke4 {[%emt 0:00:21]} Kc6 {[%emt 0:00:05]} 51. Ne5+ {[%emt 0:00:43]} Kd6 {[%emt 0:00:32]} 52. Nf3 {[%emt 0:00:59]} Kc5 {[%emt 0:00:13]} 53. Nd2 {[%emt 0:00:36]} Bg7 {[%emt 0:01:09]} 54. Nb3+ {[%emt 0:00:05]} Kb4 {[%emt 0:00:24]} 55. Kd5 {[%emt 0:00:46]} h6 {[%emt 0:00:41]} 56. Nc5 {[%emt 0:00:47]} Kxa5 {[%emt 0:00:24]} 57. Nxb7+ {[%emt 0:00:05]} Kb6 {[%emt 0:00:19]} 58. Nc5 {[%emt 0:00:15]} g5 {[%emt 0:00:43]} 59. hxg5 {[%emt 0:00:15]} hxg5 {[%emt 0:00:05]} 60. Ne6 {[%emt 0:00:24]} Bf6 {[%emt 0:00:14]} 61. Nxd4 {[%emt 0:00:31]} a5 {[%emt 0:00:43]} 62. c3 {[%emt 0:00:18]} g4 {[%emt 0:00:45]} 63. Nc2 {[%emt 0:00:33]} Bg5 {[%emt 0:00:17]} 64. Na3 {[%emt 0:00:42]} Bc1 {[%emt 0:00:29]} 65. Nc4+ {[%emt 0:00:09]} Kb5 {[%emt 0:00:36]} 66. Ke4 {[%emt 0:00:26]} a4 {[%emt 0:00:21]} 67. Na3+ {[%emt 0:08:47]} Kc6 {[%emt 0:00:07]} 68. Nc2 {[%emt 0:01:15]} Bxb2 {[%emt 0:00:15]} 69. Nb4+ {[%emt 0:00:30]} Kb5 {[%emt 0:00:50]} 70. Na2 {[%emt 0:00:29]} a3 {[%emt 0:00:25]} 71. Kd4 {[%emt 0:00:35]} Ba1 {[%emt 0:00:42]} 72. Kd5 {[%emt 0:01:26]} Bb2 {[%emt 0:00:44]} 73. d4 {[%emt 0:01:34]} Bxc3 {[%emt 0:00:43]} 74. Nxc3+ {[%emt 0:03:56]} Kb4 {[%emt 0:00:04]} 75. Na2+ {[%emt 0:00:05]} Kb3 {[%emt 0:00:07]} 76. Ke4 {[%emt 0:00:26]} Kxa2 {[%emt 0:00:09]} 77. d5 {[%emt 0:00:04]} Kb3 {[%emt 0:01:11]} 78. d6 {[%emt 0:00:04]} a2 {[%emt 0:00:03]} 79. d7 {[%emt 0:00:05]} a1=Q {[%emt 0:00:06]} 80. d8=Q {[%emt 0:00:11]} Qh1+ {[%emt 0:00:42]} 81. Ke5 {[%emt 0:00:30]} Qf3 {[%emt 0:01:47]} 82. Qb6+ {[%emt 0:01:30]} Kc2 {[%emt 0:00:27]} 83. Qc5+ {[%emt 0:01:44]} Kd2 {[%emt 0:00:25]} 84. Qb4+ {[%emt 0:00:47]} Ke3 {[%emt 0:00:36]} 85. Qd4+ {[%emt 0:00:34]} Ke2 {[%emt 0:00:04]} 86. Qf4 {[%emt 0:00:46]} Kf2 {[%emt 0:00:42]} 87. Kf5 {[%emt 0:00:41]} Kg2 {[%emt 0:00:17]} 88. Kg5 {[%emt 0:00:19]} Kh3 {[%emt 0:00:38]} 89. Qc1 {[%emt 0:00:53]} Kxg3 {[%emt 0:00:41]} 90. Qc7+ {[%emt 0:00:21]} Kg2 {[%emt 0:00:36]} 91. Qc2+ {[%emt 0:00:10]} Kf1 {[%emt 0:00:32]} 92. Qc1+ {[%emt 0:00:16]} Kf2 {[%emt 0:00:31]} 93. Qc2+ {[%emt 0:00:11]} Ke3 {[%emt 0:00:34]} 94. Qc3+ {[%emt 0:00:18]} Kf2 {[%emt 0:00:33]} 95. Qc2+ {[%emt 0:00:12]} Kg1 {[%emt 0:00:15]} 96. Qc1+ {[%emt 0:00:12]} Kh2 {[%emt 0:00:18]} 97. Qc2+ {[%emt 0:00:31]} Kh3 {[%emt 0:00:46]} 98. Qh7+ {[%emt 0:00:05]} Kg2 {[%emt 0:00:20]} 99. Qc2+ {[%emt 0:00:04]} Kh1 {[%emt 0:00:45]} 100. Qc1+ {[%emt 0:00:12]} Kh2 {[%emt 0:00:08]} 101. Qc2+ {[%emt 0:00:09]} Kg3 {[%emt 0:00:20]} 102. Qc7+ {[%emt 0:00:05]} Kf2 {[%emt 0:01:05]} 1/2-1/2

[Event "FRA-ch Youth U20W 2019"]
[Site "Hyeres"]
[Date "2019.04.19"]
[Round "7.3"]
[White "Pigeat, Typhaine"]
[Black "Ranguin, Anna"]
[Result "1-0"]
[ECO "B50"]
[WhiteElo "1742"]
[BlackElo "1539"]
[Annotator "NA"]
[PlyCount "87"]
[EventDate "2019.04.14"]
[EventType "swiss"]
[EventCountry "FRA"]
[SourceTitle "playchess.com"]
[Source "ChessBase"]
[SourceQuality "1"]
[TimeControl "5400+30"]

1. e4 {[%emt 0:00:00]} c5 {[%emt 0:00:00]} 2. Nf3 {[%emt 0:00:00]} d6 {[%emt 0:00:00]} 3. c3 {[%emt 0:00:06]} e5 {[%emt 0:01:12]} 4. h3 {[%emt 0:00:46]} Nf6 {[%emt 0:01:28]} 5. Na3 {[%emt 0:07:30]} Nc6 {[%emt 0:02:59]} 6. Bd3 {[%emt 0:08:46]} a6 {[%emt 0:02:04]} 7. Qe2 {[%emt 0:08:42]} b5 {[%emt 0:04:27]} 8. Bc2 {[%emt 0:02:46]} Be7 {[%emt 0:02:32]} 9. d3 {[%emt 0:02:17]} h6 {[%emt 0:01:52]} 10. O-O {[%emt 0:02:14]} O-O {[%emt 0:00:33]} 11. Be3 {[%emt 0:01:33]} Qc7 {[%emt 0:03:20]} 12. Rac1 {[%emt 0:03:28]} Bb7 {[%emt 0:05:58]} 13. Nh2 {[%emt 0:03:16]} d5 {[%emt 0:04:39]} 14. Ng4 {[%emt 0:12:26]} d4 {[%emt 0:08:22]} 15. Nxf6+ {[%emt 0:09:21]} Bxf6 {[%emt 0:00:57]} 16. cxd4 {[%emt 0:04:33]} Nxd4 {[%emt 0:04:46]} 17. Bxd4 {[%emt 0:03:23]} cxd4 {[%emt 0:05:27]} 18. Bb3 {[%emt 0:10:22]} Qd6 {[%emt 0:02:28]} 19. Rc2 {[%emt 0:02:17]} Bg5 {[%emt 0:02:19]} 20. g3 {[%emt 0:03:23]} Qg6 {[%emt 0:03:02]} 21. Rc7 {[%emt 0:06:57]} Bc8 {[%emt 0:01:49]} 22. Kh2 {[%emt 0:00:39]} h5 {[%emt 0:05:04]} 23. Bd5 {[%emt 0:01:32]} Rb8 {[%emt 0:01:33]} 24. Rc6 {[%emt 0:00:44]} Qh7 {[%emt 0:00:30]} 25. f4 {[%emt 0:00:30]} exf4 {[%emt 0:00:30]} 26. gxf4 {[%emt 0:01:40]} Bh6 {[%emt 0:20:02]} 27. Qf2 {[%emt 0:02:14]} Bb7 {[%emt 0:01:04]} 28. Rd6 {[%emt 0:01:06]} Bxd5 {[%emt 0:05:06]} 29. Rxd5 {[%emt 0:00:07]} Qg6 {[%emt 0:02:10]} 30. Rg1 {[%emt 0:00:49]} Qf6 {[%emt 0:00:17]} 31. Rf5 {[%emt 0:00:36]} Qd6 {[%emt 0:01:32]} 32. e5 {[%emt 0:01:10]} Qe6 {[%emt 0:02:40]} 33. Rxh5 {[%emt 0:00:07]} Rfd8 {[%emt 0:00:33]} 34. Qh4 {[%emt 0:01:04]} Kf8 {[%emt 0:00:30]} 35. Qg3 {[%emt 0:00:25]} Qxa2 {[%emt 0:00:55]} 36. Rg2 {[%emt 0:00:26]} Rbc8 {[%emt 0:01:10]} 37. f5 {[%emt 0:00:16]} f6 {[%emt 0:01:36]} 38. exf6 {[%emt 0:00:17]} Qf7 {[%emt 0:00:10]} 39. fxg7+ {[%emt 0:00:49]} Bxg7 {[%emt 0:00:17]} 40. Rg5 {[%emt 0:00:28]} Rc7 {[%emt 0:00:38]} 41. f6 {[%emt 0:00:38]} Rdc8 {[%emt 0:01:55]} 42. Rxg7 {[%emt 0:00:33]} Qxg7 {[%emt 0:01:50]} 43. fxg7+ {[%emt 0:00:08]} Kg8 {[%emt 0:00:09]} 44. Qe5 {[%emt 0:00:21]} 1-0

[Event "FRA-ch Youth U20W 2019"]
[Site "Hyeres"]
[Date "2019.04.19"]
[Round "7.5"]
[White "Azan, Sarah"]
[Black "Bellahcene, Anissa"]
[Result "0-1"]
[ECO "C55"]
[WhiteElo "1349"]
[BlackElo "1816"]
[Annotator "NA"]
[PlyCount "66"]
[EventDate "2019.04.14"]
[EventType "swiss"]
[EventCountry "FRA"]
[SourceTitle "playchess.com"]
[Source "ChessBase"]
[SourceQuality "1"]
[TimeControl "5400+30"]

1. e4 {[%emt 0:00:00]} e5 {[%emt 0:00:00]} 2. Bc4 {[%emt 0:00:00]} Nf6 {[%emt 0:00:00]} 3. d3 {[%emt 0:00:00]} Nc6 {[%emt 0:00:18]} 4. Nc3 {[%emt 0:00:00]} d6 {[%emt 0:00:32]} 5. h3 {[%emt 0:01:25]} Be7 {[%emt 0:00:54]} 6. Nf3 {[%emt 0:00:55]} O-O {[%emt 0:01:02]} 7. Be3 {[%emt 0:02:27]} Na5 {[%emt 0:01:23]} 8. Bb3 {[%emt 0:00:13]} Nxb3 {[%emt 0:00:32]} 9. axb3 {[%emt 0:00:08]} h6 {[%emt 0:01:38]} 10. O-O {[%emt 0:01:18]} Nh7 {[%emt 0:00:22]} 11. Nh2 {[%emt 0:05:40]} Bg5 {[%emt 0:07:14]} 12. f4 {[%emt 0:09:08]} exf4 {[%emt 0:00:47]} 13. Bxf4 {[%emt 0:00:10]} Bxf4 {[%emt 0:00:26]} 14. Rxf4 {[%emt 0:00:11]} Ng5 {[%emt 0:00:10]} 15. Qh5 {[%emt 0:10:10]} Ne6 {[%emt 0:12:35]} 16. Rf2 {[%emt 0:03:32]} Qg5 {[%emt 0:00:19]} 17. Qd1 {[%emt 0:14:52]} Nf4 {[%emt 0:04:51]} 18. Nf3 {[%emt 0:06:37]} Qg3 {[%emt 0:02:12]} 19. Kf1 {[%emt 0:03:55]} Nxg2 {[%emt 0:01:07]} 20. Ne2 {[%emt 0:07:02]} Ne3+ {[%emt 0:00:32]} 21. Ke1 {[%emt 0:00:24]} Qxf2+ {[%emt 0:00:16]} 22. Kxf2 {[%emt 0:00:12]} Nxd1+ {[%emt 1:03:50]} 23. Rxd1 {[%emt 0:00:09]} Bxh3 {[%emt 0:00:00]} 24. Rg1 {[%emt 0:05:59]} f5 {[%emt 0:00:00]} 25. exf5 {[%emt 0:01:47]} Bxf5 {[%emt 0:00:00]} 26. Ke1 {[%emt 0:02:17]} Bxd3 {[%emt 0:00:00]} 27. cxd3 {[%emt 0:00:17]} Rxf3 {[%emt 0:00:00]} 28. Kd2 {[%emt 0:00:20]} Re8 {[%emt 0:00:00]} 29. Nc1 {[%emt 0:00:33]} c5 {[%emt 0:00:00]} 30. Rg6 {[%emt 0:00:49]} Rf6 {[%emt 0:00:00]} 31. Rg4 {[%emt 0:00:38]} d5 {[%emt 0:00:00]} 32. Kc2 Rf2+ {[%emt 0:00:00]} 33. Kb1 Re1 {[%emt 0:00:00]} 0-1

[Event "FRA-ch Youth U20W 2019"]
[Site "Hyeres"]
[Date "2019.04.19"]
[Round "7.6"]
[White "Fromherz, Audrey"]
[Black "Guigue, Marie-Celine"]
[Result "1-0"]
[ECO "C70"]
[WhiteElo "1531"]
[BlackElo "1338"]
[Annotator "NA"]
[PlyCount "100"]
[EventDate "2019.04.14"]
[EventType "swiss"]
[EventCountry "FRA"]
[SourceTitle "playchess.com"]
[Source "ChessBase"]
[SourceQuality "1"]
[TimeControl "5400+30"]

1. e4 {[%emt 0:00:00]} e5 {[%emt 0:00:00]} 2. Nf3 {[%emt 0:00:17]} Nc6 {[%emt 0:00:00]} 3. Bb5 {[%emt 0:00:24]} a6 {[%emt 0:00:00]} 4. Ba4 {[%emt 0:00:15]} b5 {[%emt 0:00:03]} 5. Bb3 {[%emt 0:00:22]} Na5 {[%emt 0:00:13]} 6. O-O {[%emt 0:18:15]} d6 {[%emt 0:00:31]} 7. d4 {[%emt 0:01:48]} Nxb3 {[%emt 0:02:30]} 8. axb3 {[%emt 0:00:12]} Bg4 {[%emt 0:02:26]} 9. dxe5 {[%emt 0:02:10]} Bxf3 {[%emt 0:05:12]} 10. Qxf3 {[%emt 0:00:44]} dxe5 {[%emt 0:00:48]} 11. Nc3 {[%emt 0:03:43]} Nf6 {[%emt 0:01:04]} 12. Qf5 {[%emt 0:07:57]} Bd6 {[%emt 0:03:17]} 13. Bg5 {[%emt 0:08:40]} Qd7 {[%emt 0:17:49]} 14. Bxf6 {[%emt 0:12:49]} gxf6 {[%emt 0:11:54]} 15. Qxf6 {[%emt 0:04:41]} O-O {[%emt 0:01:15]} 16. Ne2 {[%emt 0:07:19]} Rfe8 {[%emt 0:03:40]} 17. Ng3 {[%emt 0:03:18]} Qg4 {[%emt 0:01:38]} 18. Nf5 {[%emt 0:08:37]} Qg6 {[%emt 0:02:26]} 19. Qh4 {[%emt 0:02:37]} Kh8 {[%emt 0:08:45]} 20. f3 {[%emt 0:09:37]} Rg8 {[%emt 0:01:50]} 21. Qg3 {[%emt 0:01:59]} h5 {[%emt 0:13:42]} 22. Qh3 {[%emt 0:03:09]} Qh7 {[%emt 0:12:51]} 23. Ng3 {[%emt 0:00:37]} Rg5 {[%emt 0:02:56]} 24. Rfd1 {[%emt 0:01:13]} Qg6 {[%emt 0:01:52]} 25. Rd2 {[%emt 0:00:50]} Kh7 {[%emt 0:02:24]} 26. Nf5 {[%emt 0:00:37]} a5 {[%emt 0:02:18]} 27. Rd5 {[%emt 0:00:31]} Rg8 {[%emt 0:01:04]} 28. Nh4 {[%emt 0:00:03]} Qe6 {[%emt 0:00:51]} 29. Qxe6 {[%emt 0:00:30]} fxe6 {[%emt 0:00:04]} 30. Rxb5 {[%emt 0:00:03]} Be7 {[%emt 0:00:16]} 31. Kf2 {[%emt 0:00:42]} R5g7 {[%emt 0:00:39]} 32. g3 {[%emt 0:00:45]} Bxh4 {[%emt 0:00:07]} 33. gxh4 {[%emt 0:00:03]} Rg2+ {[%emt 0:00:06]} 34. Ke3 {[%emt 0:00:10]} Rxc2 {[%emt 0:00:33]} 35. Rxe5 {[%emt 0:00:44]} Rxb2 {[%emt 0:01:04]} 36. Rxh5+ {[%emt 0:01:03]} Kg6 {[%emt 0:00:06]} 37. Raxa5 {[%emt 0:00:18]} Rxb3+ {[%emt 0:00:15]} 38. Kf2 {[%emt 0:00:41]} Rb2+ {[%emt 0:00:22]} 39. Kg3 {[%emt 0:00:13]} Kf6+ {[%emt 0:00:32]} 40. Rhg5 {[%emt 0:00:17]} Re8 {[%emt 0:01:00]} 41. Rac5 {[%emt 0:00:57]} Re7 {[%emt 0:00:47]} 42. h5 {[%emt 0:00:52]} Rb8 {[%emt 0:00:17]} 43. Rg6+ {[%emt 0:00:31]} Kf7 {[%emt 0:00:23]} 44. f4 {[%emt 0:00:23]} Rh8 {[%emt 0:00:24]} 45. Kg4 {[%emt 0:00:31]} Ke8 {[%emt 0:00:29]} 46. Kg5 {[%emt 0:00:41]} Kd7 {[%emt 0:00:45]} 47. f5 {[%emt 0:00:37]} exf5 {[%emt 0:00:28]} 48. exf5 {[%emt 0:00:06]} Re2 {[%emt 0:01:21]} 49. Rg7+ {[%emt 0:00:47]} Kd6 {[%emt 0:00:37]} 50. Rcxc7 {[%emt 0:00:30]} Rxh2 {[%emt 0:01:06]} 1-0

[Event "FRA-ch Youth U20W 2019"]
[Site "Hyeres"]
[Date "2019.04.20"]
[Round "8.1"]
[White "Guigue, Marie-Celine"]
[Black "Aouachria, Marwa"]
[Result "0-1"]
[ECO "B53"]
[WhiteElo "1338"]
[BlackElo "1738"]
[Annotator "NA"]
[PlyCount "58"]
[EventDate "2019.04.14"]
[EventType "swiss"]
[EventCountry "FRA"]
[SourceTitle "playchess.com"]
[Source "ChessBase"]
[SourceQuality "1"]
[TimeControl "5400+30"]

1. e4 {[%emt 0:00:00]} c5 {[%emt 0:00:07]} 2. Nf3 {[%emt 0:00:00]} d6 {[%emt 0:00:05]} 3. d4 {[%emt 0:00:12]} cxd4 {[%emt 0:00:05]} 4. Qxd4 {[%emt 0:00:07]} Bd7 {[%emt 0:00:57]} 5. Nc3 {[%emt 0:00:30]} Nc6 {[%emt 0:01:03]} 6. Qd3 {[%emt 0:00:31]} g6 {[%emt 0:00:13]} 7. Be3 {[%emt 0:05:29]} Bg7 {[%emt 0:00:20]} 8. Be2 {[%emt 0:01:03]} Rc8 {[%emt 0:00:52]} 9. O-O {[%emt 0:07:52]} Nf6 {[%emt 0:00:17]} 10. a3 {[%emt 0:04:06]} O-O {[%emt 0:03:44]} 11. Qd2 {[%emt 0:05:46]} Ng4 {[%emt 0:15:09]} 12. Bg5 {[%emt 0:09:25]} h6 {[%emt 0:02:25]} 13. Bh4 {[%emt 0:03:30]} Kh7 {[%emt 0:12:16]} 14. h3 {[%emt 0:03:48]} Nf6 {[%emt 0:01:43]} 15. Rab1 {[%emt 0:09:34]} Be6 {[%emt 0:04:10]} 16. Rfd1 {[%emt 0:05:22]} Qa5 {[%emt 0:05:42]} 17. Bg3 {[%emt 0:06:29]} a6 {[%emt 0:04:58]} 18. Nd5 {[%emt 0:07:10]} Nxe4 {[%emt 0:08:44]} 19. Qxa5 {[%emt 0:02:55]} Nxa5 {[%emt 0:02:14]} 20. Nxe7 {[%emt 0:05:44]} Rce8 {[%emt 0:02:11]} 21. Nd5 {[%emt 0:01:49]} Nxg3 {[%emt 0:01:56]} 22. fxg3 {[%emt 0:00:48]} Bxd5 {[%emt 0:04:19]} 23. Rxd5 {[%emt 0:00:32]} Rxe2 {[%emt 0:00:06]} 24. Rxa5 {[%emt 0:00:16]} Rxc2 {[%emt 0:00:16]} 25. b3 {[%emt 0:01:01]} Re8 {[%emt 0:00:55]} 26. Re1 {[%emt 0:07:36]} Rxe1+ {[%emt 0:01:52]} 27. Nxe1 {[%emt 0:11:55]} Rc1 {[%emt 0:00:04]} 28. Kf2 {[%emt 0:00:00]} Bc3 {[%emt 0:00:15]} 29. Nd3 {[%emt 0:00:00]} Rc2+ {[%emt 0:00:04]} 0-1

[Event "FRA-ch Youth U20W 2019"]
[Site "Hyeres"]
[Date "2019.04.20"]
[Round "8.2"]
[White "Pigeat, Typhaine"]
[Black "Fretel, Liza"]
[Result "0-1"]
[ECO "B30"]
[WhiteElo "1742"]
[BlackElo "1892"]
[Annotator "NA"]
[PlyCount "78"]
[EventDate "2019.04.14"]
[EventType "swiss"]
[EventCountry "FRA"]
[SourceTitle "playchess.com"]
[Source "ChessBase"]
[SourceQuality "1"]
[TimeControl "5400+30"]

1. e4 {[%emt 0:00:00]} c5 {[%emt 0:00:00]} 2. Nf3 {[%emt 0:00:00]} Nc6 {[%emt 0:00:00]} 3. Bb5 {[%emt 0:00:00]} Nf6 {[%emt 0:00:00]} 4. Bxc6 {[%emt 0:00:26]} dxc6 {[%emt 0:00:00]} 5. d3 {[%emt 0:00:44]} Bg4 {[%emt 0:00:56]} 6. h3 {[%emt 0:02:33]} Bh5 {[%emt 0:00:08]} 7. O-O {[%emt 0:00:30]} Qc7 {[%emt 0:00:30]} 8. Be3 {[%emt 0:00:30]} c4 {[%emt 0:00:30]} 9. Nbd2 {[%emt 0:00:30]} cxd3 {[%emt 0:00:30]} 10. cxd3 {[%emt 0:00:30]} e6 {[%emt 0:00:30]} 11. Qc2 {[%emt 0:00:30]} h6 {[%emt 0:00:30]} 12. a3 {[%emt 0:00:30]} Bd6 {[%emt 0:00:30]} 13. b4 {[%emt 0:00:30]} O-O {[%emt 0:00:30]} 14. Qc3 {[%emt 0:00:30]} Be7 {[%emt 0:00:30]} 15. Rae1 {[%emt 0:00:30]} Rfd8 {[%emt 0:00:30]} 16. Ne5 {[%emt 0:00:30]} Nd7 {[%emt 0:00:30]} 17. Nxd7 {[%emt 0:00:30]} Rxd7 {[%emt 0:00:30]} 18. d4 {[%emt 0:00:30]} a5 {[%emt 0:00:30]} 19. Rb1 {[%emt 0:00:30]} axb4 {[%emt 0:00:30]} 20. axb4 {[%emt 0:00:30]} Be2 {[%emt 0:00:30]} 21. Rfe1 {[%emt 0:00:30]} Bb5 {[%emt 0:00:30]} 22. e5 {[%emt 0:00:30]} Qd8 {[%emt 0:00:30]} 23. f4 {[%emt 0:00:30]} Ra4 {[%emt 0:00:30]} 24. Nf3 {[%emt 0:00:30]} Qa8 {[%emt 0:00:30]} 25. g4 {[%emt 0:00:30]} b6 {[%emt 0:00:30]} 26. Kf2 {[%emt 0:00:30]} Ra3 {[%emt 0:00:30]} 27. Rb3 {[%emt 0:00:30]} Rda7 {[%emt 0:00:30]} 28. Reb1 {[%emt 0:00:30]} Rxb3 {[%emt 0:00:30]} 29. Rxb3 {[%emt 0:00:30]} Ra1 {[%emt 0:00:30]} 30. Kg3 {[%emt 0:00:30]} Qa2 {[%emt 0:00:30]} 31. Rb2 {[%emt 0:00:30]} Qd5 {[%emt 0:00:30]} 32. Qd2 {[%emt 0:00:30]} Ra3 {[%emt 0:00:30]} 33. Ne1 {[%emt 0:00:30]} Qe4 {[%emt 0:00:30]} 34. Nc2 {[%emt 0:00:30]} Rd3 {[%emt 0:00:30]} 35. Qf2 {[%emt 0:00:30]} Rd1 {[%emt 0:00:30]} 36. Ne1 {[%emt 0:00:30]} Qd5 {[%emt 0:00:30]} 37. Nf3 {[%emt 0:00:30]} Rf1 {[%emt 0:00:30]} 38. Qg2 {[%emt 0:00:30]} Rxf3+ {[%emt 0:00:30]} 39. Qxf3 {[%emt 0:00:30]} Bh4+ {[%emt 0:00:30]} 0-1

[Event "FRA-ch Youth U20W 2019"]
[Site "Hyeres"]
[Date "2019.04.20"]
[Round "8.3"]
[White "Milroy, Melena"]
[Black "Aubert, Laurane"]
[Result "1/2-1/2"]
[ECO "B23"]
[WhiteElo "1720"]
[BlackElo "1953"]
[Annotator "NA"]
[PlyCount "121"]
[EventDate "2019.04.14"]
[EventType "swiss"]
[EventCountry "FRA"]
[SourceTitle "playchess.com"]
[Source "ChessBase"]
[SourceQuality "1"]
[TimeControl "5400+30"]

1. e4 {[%emt 0:00:00]} c5 {[%emt 0:00:00]} 2. Nc3 {[%emt 0:00:00]} Nc6 {[%emt 0:00:00]} 3. Bb5 {[%emt 0:00:00]} Nd4 {[%emt 0:00:00]} 4. Bc4 {[%emt 0:00:00]} e6 {[%emt 0:00:00]} 5. d3 {[%emt 0:00:00]} Nf6 {[%emt 0:10:19]} 6. f4 {[%emt 0:02:07]} d5 {[%emt 0:04:38]} 7. Bb3 {[%emt 0:00:37]} b5 {[%emt 0:05:47]} 8. e5 {[%emt 0:04:07]} Nd7 {[%emt 0:05:56]} 9. Nf3 {[%emt 0:01:44]} Rb8 {[%emt 0:10:28]} 10. Nxd4 {[%emt 0:03:02]} cxd4 {[%emt 0:00:04]} 11. Ne2 {[%emt 0:00:05]} Qb6 {[%emt 0:04:33]} 12. O-O {[%emt 0:02:00]} a5 {[%emt 0:02:05]} 13. a3 {[%emt 0:00:47]} g6 {[%emt 0:06:54]} 14. Qe1 {[%emt 0:01:53]} Be7 {[%emt 0:05:14]} 15. Kh1 {[%emt 0:21:08]} b4 {[%emt 0:10:04]} 16. axb4 {[%emt 0:09:01]} axb4 {[%emt 0:00:05]} 17. Qf2 {[%emt 0:03:04]} Bc5 {[%emt 0:00:47]} 18. Bd2 {[%emt 0:02:18]} O-O {[%emt 0:02:06]} 19. Qg3 {[%emt 0:10:20]} Qc7 {[%emt 0:04:07]} 20. Ng1 {[%emt 0:01:35]} f6 {[%emt 0:02:53]} 21. Nf3 {[%emt 0:00:35]} Bb7 {[%emt 0:02:13]} 22. Qh3 {[%emt 0:06:01]} Rbe8 {[%emt 0:00:59]} 23. Rae1 {[%emt 0:00:27]} Bc8 {[%emt 0:04:58]} 24. Qg3 {[%emt 0:08:33]} Nb8 {[%emt 0:05:23]} 25. f5 {[%emt 0:06:49]} exf5 {[%emt 0:02:35]} 26. Bxd5+ {[%emt 0:00:14]} Be6 {[%emt 0:02:34]} 27. Bxe6+ {[%emt 0:00:34]} Rxe6 {[%emt 0:00:07]} 28. Bf4 {[%emt 0:01:50]} Qb7 {[%emt 0:03:22]} 29. exf6 {[%emt 0:02:36]} Rexf6 {[%emt 0:00:47]} 30. Be5 {[%emt 0:00:45]} R6f7 {[%emt 0:00:54]} 31. Nxd4 {[%emt 0:00:38]} Bxd4 {[%emt 0:01:36]} 32. Bxd4 {[%emt 0:00:06]} Nc6 {[%emt 0:01:01]} 33. Bc5 {[%emt 0:04:24]} Rd8 {[%emt 0:00:17]} 34. Rf3 {[%emt 0:01:12]} Qb5 {[%emt 0:00:47]} 35. Bf2 {[%emt 0:01:18]} Qd5 {[%emt 0:01:42]} 36. Rfe3 {[%emt 0:01:03]} Qd7 {[%emt 0:00:29]} 37. Re6 {[%emt 0:01:18]} Re7 {[%emt 0:01:16]} 38. Rxe7 {[%emt 0:00:15]} Nxe7 {[%emt 0:00:03]} 39. Bc5 {[%emt 0:01:03]} Nc6 {[%emt 0:00:31]} 40. Qh4 {[%emt 0:00:48]} b3 {[%emt 0:01:19]} 41. Qc4+ {[%emt 0:00:56]} Qf7 {[%emt 0:00:25]} 42. cxb3 {[%emt 0:00:52]} Qxc4 {[%emt 0:00:40]} 43. dxc4 {[%emt 0:00:27]} Rd3 {[%emt 0:00:50]} 44. h3 {[%emt 0:03:34]} Rxb3 {[%emt 0:00:08]} 45. Ba3 {[%emt 0:00:15]} Kf7 {[%emt 0:00:17]} 46. Kg1 {[%emt 0:01:25]} h6 {[%emt 0:00:36]} 47. Kf2 {[%emt 0:00:10]} g5 {[%emt 0:00:56]} 48. Re3 {[%emt 0:00:21]} Rb7 {[%emt 0:00:27]} 49. Re2 {[%emt 0:01:22]} Rb3 {[%emt 0:00:28]} 50. Re3 {[%emt 0:00:41]} Rb8 {[%emt 0:00:05]} 51. Ke2 {[%emt 0:00:12]} f4 {[%emt 0:00:45]} 52. Rd3 {[%emt 0:00:34]} Rb7 {[%emt 0:00:43]} 53. b4 {[%emt 0:00:47]} Ne5 {[%emt 0:00:33]} 54. Rc3 {[%emt 0:00:12]} Ke6 {[%emt 0:00:12]} 55. b5 {[%emt 0:00:41]} h5 {[%emt 0:00:44]} 56. Bb2 {[%emt 0:00:35]} g4 {[%emt 0:00:31]} 57. hxg4 {[%emt 0:00:28]} hxg4 {[%emt 0:00:02]} 58. Rc2 {[%emt 0:00:19]} f3+ {[%emt 0:00:56]} 59. gxf3 {[%emt 0:00:09]} gxf3+ {[%emt 0:00:04]} 60. Ke3 {[%emt 0:00:12]} Nxc4+ {[%emt 0:00:53]} 61. Rxc4 {[%emt 0:01:02]} 1/2-1/2